fUSD/lending_fUSD_20241227
["ID","MTS","AMOUNT","RATE_DAILY","PERIOD"]
[346821696,1735306276483,-13768.66,0.00011972,2]
[346821697,1735306276494,-1092.31,0.00011972,2]
[346821698,1735306276504,-733.3,0.00011972,2]
[346821699,1735306276514,-2179.23,0.00011972,2]
[346821700,1735306276524,-563.88,0.00011972,2]
[346821701,1735306276534,-9077.24,0.00011972,2]
[346821702,1735306276544,-1598.52,0.00011972,2]
[346821703,1735306276554,-2434.04,0.00011972,2]
[346821704,1735306276563,-847.53,0.00011972,2]
[346821705,1735306276573,-500.0,0.00011972,2]
[346821706,1735306276583,-1541.53,0.00011972,2]
[346821707,1735306276592,-1263.16,0.00011972,2]
[346821708,1735306276602,-801.73,0.00011972,2]
[346821709,1735306276611,-1519.6,0.00011972,2]
[346821710,1735306276622,-500.0,0.00011972,2]
[346821711,1735306276631,-2003.5,0.00011972,2]
[346821712,1735306276640,-2051.05,0.00011972,2]
[346821713,1735306276650,-9585.5,0.00011972,2]
[346821714,1735306276659,-1215.87,0.00011972,2]
[346821715,1735306276669,-500.0,0.00011972,2]
[346821716,1735306276679,-1953.84,0.00011972,2]
[346821717,1735306276689,-2936.73,0.00011972,2]
[346821718,1735306276698,-500.0,0.00011972,2]
[346821719,1735306276708,-2825.02,0.00011972,2]
[346821720,1735306276717,-720.34,0.00011972,2]
[346821721,1735306276727,-2387.1,0.00011972,2]
[346821722,1735306276737,-1613.62,0.00011972,2]
[346821723,1735306276747,-1377.95,0.00011972,2]
[346821724,1735306276756,-3596.75,0.00011972,2]
[346821725,1735306276766,-3008.73,0.00011972,2]
[346821726,1735306276776,-878.93,0.00011972,2]
[346821727,1735306276786,-6366.49,0.00011972,2]
[346821728,1735306276796,-1512.13,0.00011972,2]
[346821729,1735306276806,-957.14,0.00011972,2]
[346821730,1735306276816,-500.0,0.00011972,2]
[346821731,1735306276826,-500.0,0.00011972,2]
[346821732,1735306276835,-500.0,0.00011972,2]
[346821733,1735306276846,-640.14,0.00011972,2]
[346821734,1735306276856,-837.16,0.00011972,2]
[346821735,1735306276865,-1881.5,0.00011972,2]
[346821736,1735306276875,-955.52,0.00011972,2]
[346821737,1735306276884,-3975.83,0.00011972,2]
[346821738,1735306276894,-500.0,0.00011972,2]
[346821739,1735306276904,-1747.85,0.00011972,2]
[346821740,1735306276915,-500.0,0.00011972,2]
[346821741,1735306276924,-2274.69,0.00011972,2]
[346821742,1735306276935,-500.0,0.00011972,2]
[346821743,1735306276944,-1535.14,0.00011972,2]
[346821744,1735306276954,-2145.35,0.00011972,2]
[346821745,1735306276963,-500.0,0.00011972,2]
[346821746,1735306276972,-857.84,0.00011972,2]
[346821747,1735306276982,-4799.02,0.00011972,2]
[346821748,1735306276992,-500.0,0.00011972,2]
[346821749,1735306277003,-1979.16,0.00011972,2]
[346821750,1735306277013,-1552.45,0.00011972,2]
[346821751,1735306277023,-966.6,0.00011972,2]
[346821752,1735306277033,-1013.34,0.00011972,2]
[346821753,1735306277043,-500.0,0.00011972,2]
[346821754,1735306277053,-500.0,0.00011972,2]
[346821755,1735306277063,-2897.7,0.00011972,2]
[346821756,1735306277073,-500.0,0.00011972,2]
[346821757,1735306277083,-500.0,0.00011972,2]
[346821758,1735306277093,-500.0,0.00011972,2]
[346821759,1735306277103,-2006.92,0.00011972,2]
[346821760,1735306277114,-500.0,0.00011972,2]
[346821761,1735306277123,-3076.9,0.00011972,2]
[346821762,1735306277134,-1045.07,0.00011972,2]
[346821763,1735306277144,-1637.15,0.00011972,2]
[346821764,1735306277154,-500.0,0.00011972,2]
[346821765,1735306277164,-1266.02,0.00011972,2]
[346821766,1735306277174,-3298.5,0.00011972,2]
[346821767,1735306277188,-500.0,0.00011972,2]
[346821768,1735306277198,-3559.92,0.00011972,2]
[346821769,1735306277208,-919.96,0.00011972,2]
[346821770,1735306277217,-500.0,0.00011972,2]
[346821771,1735306277227,-206.63577924,0.00011973,2]
[346821772,1735306277237,-500.0,0.00011973,2]
[346821773,1735306277247,-636.32,0.00011973,2]
[346821774,1735306277256,-500.0,0.00011973,2]
[346821775,1735306277268,-500.0,0.00011973,2]
[346821776,1735306277279,-311.88938428,0.00011973,2]
[346821777,1735306277288,-500.0,0.00011973,2]
[346821778,1735306277299,-500.0,0.00011973,2]
[346821779,1735306277308,-500.0,0.00011973,2]
[346821780,1735306277318,-500.0,0.00011973,2]
[346821781,1735306277328,-500.0,0.00011973,2]
[346821782,1735306277337,-516.49,0.00011973,2]
[346821783,1735306277347,-722.63,0.00011973,2]
[346821784,1735306277358,-992.85,0.00011973,2]
[346821785,1735306277369,-500.0,0.00011973,2]
[346821786,1735306277380,-500.0,0.00011973,2]
[346821787,1735306277389,-510.41,0.00011973,2]
[346821788,1735306277399,-909.19,0.00011973,2]
[346821789,1735306277409,-500.0,0.00011973,2]
[346821790,1735306277419,-871.78,0.00011973,2]
[346821791,1735306277430,-526.15,0.00011973,2]
[346821792,1735306277441,-500.0,0.00011973,2]
[346821793,1735306277451,-500.0,0.00011973,2]
[346821794,1735306277461,-198.90463833,0.00011973,2]
[346821795,1735306277471,-633.92,0.00011973,2]
[346821796,1735306277483,-404.0974999,0.00011973,2]
[346821797,1735306277495,-311.23738651,0.00011973,2]
[346821798,1735306277506,-500.0,0.00011973,2]
[346821799,1735306277516,-500.0,0.00011973,2]
[346821800,1735306277526,-500.0,0.00011973,2]
[346821801,1735306277536,-500.0,0.00011973,2]
[346821802,1735306277546,-500.0,0.00011973,2]
[346821803,1735306277556,-1366.66,0.00011973,2]
[346821804,1735306277565,-1568.69,0.00011973,2]
[346821805,1735306277787,-1429.92,0.00011973,2]
[346821806,1735306277798,-604.69,0.00011973,2]
[346821807,1735306277808,-1728.67,0.00011973,2]
[346821808,1735306277818,-314.58315027,0.00011973,2]
[346821809,1735306277828,-500.0,0.00011973,2]
[346821810,1735306277838,-285.43048931,0.00011973,2]
[346821811,1735306277847,-500.0,0.00011973,2]
[346821812,1735306277857,-500.0,0.00011973,2]
[346821813,1735306277867,-507.05743493,0.00011973,2]
[346821814,1735306277877,-500.0,0.00011973,2]
[346821815,1735306277886,-8270.08,0.00011973,2]
[346821816,1735306277897,-500.0,0.00011973,2]
[346821817,1735306277907,-500.0,0.00011973,2]
[346821818,1735306277916,-500.0,0.00011973,2]
[346821819,1735306277926,-2846.89,0.00011973,2]
[346821820,1735306277935,-2068.11,0.00011973,2]
[346821821,1735306277945,-528.05544638,0.00011973,2]
[346821822,1735306277955,-5045.96,0.00011973,2]
[346821823,1735306277965,-500.0,0.00011973,2]
[346821824,1735306277975,-3968.81,0.00011973,2]
[346821825,1735306277985,-500.0,0.00011973,2]
[346821826,1735306277995,-505.68364802,0.00011973,2]
[346821827,1735306278005,-3499.72,0.00011973,2]
[346821828,1735306278015,-500.0,0.00011973,2]
[346821829,1735306278025,-711.85,0.00011973,2]
[346821830,1735306278036,-24383.54,0.00011973,2]
[346821831,1735306278046,-889.93,0.00011973,2]
[346821832,1735306278055,-1414.6,0.00011973,2]
[346821833,1735306278066,-500.0,0.00011973,2]
[346821834,1735306278076,-1367.36,0.00011973,2]
[346821835,1735306278086,-1707.69,0.00011973,2]
[346821836,1735306278097,-14554.96,0.00011973,2]
[346821837,1735306278107,-1819.73,0.00011973,2]
[346821838,1735306278117,-500.0,0.00011973,2]
[346821839,1735306278127,-500.0,0.00011973,2]
[346821840,1735306278137,-1260.36,0.00011973,2]
[346821841,1735306278147,-500.0,0.00011973,2]
[346821842,1735306278157,-789.28,0.00011973,2]
[346821843,1735306278167,-2076.11,0.00011973,2]
[346821844,1735306278178,-1940.51,0.00011973,2]
[346821845,1735306278193,-500.0,0.00011973,2]
[346821846,1735306278203,-582.72,0.00011973,2]
[346821847,1735306278213,-701.52,0.00011973,2]
[346821848,1735306278223,-1683.42,0.00011973,2]
[346821849,1735306278234,-500.0,0.00011973,2]
[346821850,1735306278244,-500.0,0.00011973,2]
[346821851,1735306278254,-939.11,0.00011973,2]
[346821852,1735306278264,-588.69841293,0.00011973,2]
[346821853,1735306278275,-1060.31,0.00011973,2]
[346821854,1735306278286,-702.23,0.00011973,2]
[346821855,1735306278296,-1884.63,0.00011973,2]
[346821856,1735306278306,-1875.64,0.00011973,2]
[346821857,1735306278316,-528.22,0.00011973,2]
[346821858,1735306278326,-2631.5,0.00011973,2]
[346821859,1735306278336,-500.0,0.00011973,2]
[346821860,1735306278346,-702.21,0.00011973,2]
[346821861,1735306278356,-901.63,0.00011973,2]
[346821862,1735306278366,-2072.97,0.00011973,2]
[346821863,1735306278375,-1703.99,0.00011973,2]
[346821864,1735306278386,-1353.5,0.00011973,2]
[346821865,1735306278396,-500.0,0.00011973,2]
[346821866,1735306278406,-500.0,0.00011973,2]
[346821867,1735306278416,-1781.59,0.00011973,2]
[346821868,1735306278426,-742.42,0.00011973,2]
[346821869,1735306278437,-653.91,0.00011973,2]
[346821870,1735306278448,-798.31,0.00011973,2]
[346821871,1735306278458,-2581.0,0.00011973,2]
[346821872,1735306278468,-500.0,0.00011973,2]
[346821873,1735306278478,-500.0,0.00011973,2]
[346821874,1735306278488,-1852.4,0.00011973,2]
[346821875,1735306278497,-500.0,0.00011973,2]
[346821876,1735306278507,-500.0,0.00011973,2]
[346821877,1735306278518,-500.0,0.00011973,2]
[346821878,1735306278528,-893.35,0.00011973,2]
[346821879,1735306278537,-2117.12,0.00011973,2]
[346821880,1735306278547,-1561.34,0.00011973,2]
[346821881,1735306278557,-1191.99,0.00011973,2]
[346821882,1735306278567,-1486.12,0.00011973,2]
[346821883,1735306278577,-1280.4,0.00011973,2]
[346821884,1735306278587,-2058.65,0.00011973,2]
[346821885,1735306278597,-2670.13,0.00011973,2]
[346821886,1735306278607,-500.0,0.00011973,2]
[346821887,1735306278617,-839.4,0.00011973,2]
[346821888,1735306278626,-500.0,0.00011973,2]
[346821889,1735306278636,-500.0,0.00011973,2]
[346821890,1735306278646,-518.65,0.00011973,2]
[346821891,1735306278655,-1408.15,0.00011973,2]
[346821892,1735306278666,-877.95,0.00011973,2]
[346821893,1735306278675,-517.88,0.00011973,2]
[346821894,1735306278685,-500.0,0.00011973,2]
[346821895,1735306278695,-2862.18,0.00011973,2]
[346821896,1735306278706,-907.76,0.00011973,2]
[346821897,1735306278716,-1568.55,0.00011973,2]
[346821898,1735306278726,-2911.29,0.00011973,2]
[346821899,1735306278735,-674.4,0.00011973,2]
[346821900,1735306278745,-2077.6,0.00011973,2]
[346821901,1735306278755,-3405.53,0.00011973,2]
[346821902,1735306278765,-2791.45,0.00011973,2]
[346821903,1735306278775,-1960.94,0.00011973,2]
[346821904,1735306278785,-501.37,0.00011973,2]
[346821905,1735306278795,-1471.36,0.00011973,2]
[346821906,1735306278804,-2066.35,0.00011973,2]
[346821907,1735306278814,-607.81,0.00011973,2]
[346821908,1735306278824,-1487.03,0.00011973,2]
[346821909,1735306278834,-1538.23,0.00011973,2]
[346821910,1735306278844,-500.0,0.00011973,2]
[346821911,1735306278854,-3972.05,0.00011973,2]
[346821912,1735306278864,-5071.1,0.00011973,2]
[346821913,1735306278875,-1140.63,0.00011973,2]
[346821914,1735306278885,-3650.7,0.00011973,2]
[346821915,1735306278895,-549.8,0.00011973,2]
[346821916,1735306278905,-1276.18,0.00011973,2]
[346821917,1735306278915,-500.0,0.00011973,2]
[346821918,1735306278925,-3809.01,0.00011973,2]
[346821919,1735306278935,-1267.32,0.00011973,2]
[346821920,1735306278945,-20639.26,0.00011973,2]
[346821921,1735306278955,-1451.45,0.00011973,2]
[346821922,1735306278965,-6189.98,0.00011973,2]
[346821923,1735306278974,-1251.17,0.00011973,2]
[346821924,1735306278984,-3204.59,0.00011973,2]
[346821925,1735306278995,-1794.95,0.00011973,2]
[346821926,1735306279004,-4594.04,0.00011973,2]
[346821927,1735306279014,-863.22,0.00011973,2]
[346821928,1735306279024,-4907.67,0.00011973,2]
[346821929,1735306279035,-1280.94,0.00011973,2]
[346821930,1735306279045,-624.17660063,0.00011973,2]
[346821931,1735306279055,-2552.57,0.00011973,2]
[346821932,1735306279064,-9143.35,0.00011973,2]
[346821933,1735306279075,-1125.65,0.00011973,2]
[346821934,1735306279084,-583.35,0.00011973,2]
[346821935,1735306279095,-996.77,0.00011973,2]
[346821936,1735306279105,-1328.72,0.00011973,2]
[346821937,1735306279114,-1157.95,0.00011973,2]
[346821938,1735306279124,-1578.52,0.00011973,2]
[346821939,1735306279134,-1605.7,0.00011973,2]
[346821940,1735306279144,-500.0,0.00011973,2]
[346821941,1735306279154,-500.0,0.00011973,2]
[346821942,1735306279165,-500.0,0.00011973,2]
[346821943,1735306279175,-500.0,0.00011973,2]
[346821944,1735306279187,-500.0,0.00011973,2]
[346821945,1735306279198,-4867.6,0.00011973,2]
[346821946,1735306279208,-901.36,0.00011973,2]
[346821947,1735306279217,-500.0,0.00011973,2]
[346821948,1735306279228,-743.5,0.00011973,2]
[346821949,1735306279238,-4713.74,0.00011973,2]
[346821950,1735306279247,-1521.59,0.00011973,2]
[346821951,1735306279258,-500.0,0.00011973,2]
[346821952,1735306279268,-500.0,0.00011973,2]
[346821953,1735306279279,-1367.42,0.00011973,2]
[346821954,1735306279289,-17898.06,0.00011973,2]
[346821955,1735306279300,-1837.88,0.00011974,2]
[346821956,1735306279311,-4000.52,0.00011974,2]
[346821957,1735306279321,-4000.52,0.00011974,2]
[346821958,1735306279331,-4508.39,0.00011974,2]
[346821959,1735306279341,-944.58,0.00011974,2]
[346821960,1735306279351,-3922.68,0.00011974,2]
[346821961,1735306279361,-3189.19,0.00011974,2]
[346821962,1735306279371,-4999.96,0.00011974,2]
[346821963,1735306279380,-5710.83,0.00011974,2]
[346821964,1735306279390,-8804.53,0.00011974,2]
[346821965,1735306279400,-63931.01,0.00011974,2]
[346821966,1735306279410,-61267.22,0.00011974,2]
[346821967,1735306279419,-6967.22,0.00011974,2]
[346821968,1735306279429,-3888.21,0.00011974,2]
[346821969,1735306279439,-2033.34,0.00011974,2]
[346821970,1735306279449,-5758.05,0.00011974,2]
[346821971,1735306279459,-44342.41,0.00011974,2]
[346821972,1735306279470,-1531.53,0.00011974,2]
[346821973,1735306279480,-500.0,0.00011975,2]
[346821974,1735306279490,-500.0,0.00011975,2]
[346821975,1735306279500,-1813.64,0.00011975,2]
[346821976,1735306279509,-500.0,0.00011975,2]
[346821977,1735306279519,-3099.76,0.00011975,2]
[346821978,1735306279528,-10962.93,0.00011975,2]
[346821979,1735306279537,-1377.79,0.00011975,2]
[346821980,1735306279547,-2950.93,0.00011975,2]
[346821981,1735306279557,-3054.53,0.00011975,2]
[346821982,1735306279567,-2338.42,0.00011975,2]
[346821983,1735306279577,-7649.12,0.00011975,2]
[346821984,1735306279588,-6791.44,0.00011975,2]
[346821985,1735306279598,-4999.999999,0.00012,2]
[346821986,1735306279608,-587.0,0.00012099,2]
[346821987,1735306279618,-893.84,0.00012105,2]
[346821988,1735306279628,-944.58,0.00012111,2]
[346821989,1735306279638,-205.929569,0.00012192,2]
[346821990,1735306279648,-821.85,0.00012244,2]
[346821991,1735306279658,-663.71,0.00012244,2]
[346821992,1735306279667,-1791.41,0.00012245,2]
[346821993,1735306279677,-3807.95,0.00012245,2]
[346821994,1735306279687,-500.0,0.00012245,2]
[346821995,1735306279697,-1796.18,0.00012245,2]
[346821996,1735306279706,-3486.02,0.00012245,2]
[346821997,1735306279716,-3549.69,0.00012245,2]
[346821998,1735306279727,-6594.56,0.00012245,2]
[346821999,1735306279737,-2062.84,0.00012245,2]
[346822000,1735306279747,-3282.47,0.00012245,2]
[346822001,1735306279756,-5031.78,0.00012245,2]
[346822002,1735306279766,-4262.57,0.00012245,2]
[346822003,1735306279776,-1958.76,0.00012245,2]
[346822004,1735306279787,-2857.14,0.00012245,2]
[346822005,1735306279796,-3236.92,0.00012245,2]
[346822006,1735306279806,-5021.39,0.00012245,2]
[346822007,1735306279815,-1338.6,0.00012245,2]
[346822008,1735306279825,-1289.07,0.00012245,2]
[346822009,1735306279835,-5901.0,0.00012245,2]
[346822010,1735306279845,-20736.34,0.00012245,2]
[346822011,1735306279854,-152.363358,0.00012245,2]
[346822012,1735306279865,-16875.17,0.00012245,2]
[346822013,1735306279875,-2974.318948,0.00012245,2]
[346822014,1735306279885,-500.0,0.00012245,2]
[346822015,1735306279895,-2963.052511,0.00012245,2]
[346822016,1735306279904,-9822.55,0.00012245,2]
[346822017,1735306279914,-3969.84,0.00012245,2]
[346822018,1735306279923,-525.48,0.00012245,2]
[346822019,1735306279934,-965.78,0.00012245,2]
[346822020,1735306279944,-6922.2,0.00012245,2]
[346822021,1735306279953,-3367.33,0.00012245,2]
[346822022,1735306279963,-2612.97,0.00012245,2]
[346822023,1735306279973,-17592.6,0.00012245,2]
[346822024,1735306279983,-3747.1,0.00012245,2]
[346822025,1735306279993,-1621.62,0.00012245,2]
[346822026,1735306280003,-933.98,0.00012245,2]
[346822027,1735306280012,-344.07341,0.00012245,2]
[346822028,1735306280022,-4469.86,0.00012245,2]
[346822029,1735306280031,-194.26963,0.00012245,2]
[346822030,1735306280041,-1998.78,0.00012245,2]
[346822031,1735306280050,-3385.44,0.00012245,2]
[346822032,1735306280060,-2070.97,0.00012245,2]
[346822033,1735306280070,-2399.23,0.00012245,2]
[346822034,1735306280079,-3543.74,0.00012245,2]
[346822035,1735306280088,-500.0,0.00012245,2]
[346822036,1735306280098,-500.0,0.00012245,2]
[346822037,1735306280107,-500.0,0.00012245,2]
[346822038,1735306280117,-1292.65,0.00012245,2]
[346822039,1735306280127,-618.59,0.00012245,2]
[346822040,1735306280137,-4000.3,0.00012245,2]
[346822041,1735306280148,-1062.53,0.00012245,2]
[346822042,1735306280158,-910.89,0.00012246,2]
[346822043,1735306280168,-500.0,0.00012246,2]
[346822044,1735306280178,-827.76,0.00012246,2]
[346822045,1735306280193,-500.0,0.00012246,2]
[346822046,1735306280202,-500.0,0.00012246,2]
[346822047,1735306280211,-830.84,0.00012246,2]
[346822048,1735306280222,-753.68,0.00012246,2]
[346822049,1735306280232,-500.0,0.00012246,2]
[346822050,1735306280241,-747.68,0.00012246,2]
[346822051,1735306280251,-1170.84,0.00012246,2]
[346822052,1735306280261,-583.87191112,0.00012246,2]
[346822053,1735306280341,-986.25,0.00012246,2]
[346822054,1735306280352,-574.49,0.00012246,2]
[346822055,1735306280362,-1064.11,0.00012246,2]
[346822056,1735306280375,-527.17,0.00012246,2]
[346822057,1735306280385,-500.0,0.00012246,2]
[346822058,1735306280394,-1405.85,0.00012246,2]
[346822059,1735306280405,-526.0,0.00012246,2]
[346822060,1735306280414,-500.0,0.00012246,2]
[346822061,1735306280423,-641.09,0.00012246,2]
[346822062,1735306280433,-730.28,0.00012246,2]
[346822063,1735306280442,-500.0,0.00012246,2]
[346822064,1735306280452,-500.0,0.00012246,2]
[346822065,1735306280461,-500.0,0.00012246,2]
[346822066,1735306280471,-527.55,0.00012246,2]
[346822067,1735306280480,-500.0,0.00012246,2]
[346822068,1735306280490,-500.0,0.00012246,2]
[346822069,1735306280500,-500.0,0.00012246,2]
[346822070,1735306280509,-1178.4,0.00012246,2]
[346822071,1735306280518,-834.26,0.00012246,2]
[346822072,1735306280527,-691.41,0.00012246,2]
[346822073,1735306280537,-500.0,0.00012246,2]
[346822074,1735306280546,-500.0,0.00012246,2]
[346822075,1735306280555,-532.76,0.00012246,2]
[346822076,1735306280564,-500.0,0.00012246,2]
[346822077,1735306280573,-500.0,0.00012246,2]
[346822078,1735306280583,-1196.79,0.00012246,2]
[346822079,1735306280592,-500.0,0.00012246,2]
[346822080,1735306280601,-648.96,0.00012246,2]
[346822081,1735306280610,-500.0,0.00012246,2]
[346822082,1735306280620,-500.0,0.00012246,2]
[346822083,1735306280629,-664.27,0.00012246,2]
[346822084,1735306280639,-1317.21,0.00012246,2]
[346822085,1735306280648,-790.62,0.00012246,2]
[346822086,1735306280657,-306.96784602,0.00012246,2]
[346822087,1735306280666,-690.28,0.00012246,2]
[346822088,1735306280675,-500.0,0.00012246,2]
[346822089,1735306280684,-500.0,0.00012246,2]
[346822090,1735306280694,-500.0,0.00012246,2]
[346822091,1735306280703,-579.35,0.00012246,2]
[346822092,1735306280712,-755.91,0.00012246,2]
[346822093,1735306280721,-500.0,0.00012246,2]
[346822094,1735306280731,-500.0,0.00012246,2]
[346822095,1735306280740,-500.0,0.00012246,2]
[346822096,1735306280750,-657.83,0.00012246,2]
[346822097,1735306280759,-1038.81,0.00012246,2]
[346822098,1735306280768,-648.31574342,0.00012246,2]
[346822099,1735306280778,-500.0,0.00012246,2]
[346822100,1735306280788,-1630.68,0.00012246,2]
[346822101,1735306280798,-2128.13,0.00012246,2]
[346822102,1735306280809,-2608.21,0.00012246,2]
[346822103,1735306280836,-958.91,0.00012246,2]
[346822104,1735306280845,-812.85,0.00012246,2]
[346822105,1735306280854,-1119.16,0.00012246,2]
[346822106,1735306280863,-2010.33,0.00012246,2]
[346822107,1735306280873,-500.0,0.00012246,2]
[346822108,1735306280882,-2269.7,0.00012246,2]
[346822109,1735306280892,-1891.6,0.00012246,2]
[346822110,1735306280901,-500.0,0.00012246,2]
[346822111,1735306280910,-1795.09,0.00012246,2]
[346822112,1735306280920,-554.75,0.00012246,2]
[346822113,1735306280929,-1012.99,0.00012246,2]
[346822114,1735306280940,-500.0,0.00012246,2]
[346822115,1735306280949,-704.78,0.00012246,2]
[346822116,1735306280959,-741.75,0.00012246,2]
[346822117,1735306280969,-996.19,0.00012246,2]
[346822118,1735306280978,-3228.51,0.00012246,2]
[346822119,1735306280988,-500.0,0.00012246,2]
[346822120,1735306280997,-841.29,0.00012246,2]
[346822121,1735306281006,-699.02,0.00012246,2]
[346822122,1735306281016,-500.0,0.00012246,2]
[346822123,1735306281025,-1666.45,0.00012246,2]
[346822124,1735306281035,-1620.47,0.00012246,2]
[346822125,1735306281044,-500.0,0.00012246,2]
[346822126,1735306281054,-948.23,0.00012246,2]
[346822127,1735306281064,-500.0,0.00012246,2]
[346822128,1735306281074,-500.0,0.00012246,2]
[346822129,1735306281084,-534.46,0.00012246,2]
[346822130,1735306281094,-1966.19,0.00012246,2]
[346822131,1735306281103,-500.0,0.00012246,2]
[346822132,1735306281115,-846.03,0.00012246,2]
[346822133,1735306281125,-1482.82,0.00012246,2]
[346822134,1735306281135,-1241.01,0.00012246,2]
[346822135,1735306281145,-1804.34,0.00012246,2]
[346822136,1735306281154,-629.23,0.00012246,2]
[346822137,1735306281163,-520.03,0.00012246,2]
[346822138,1735306281173,-500.0,0.00012246,2]
[346822139,1735306281185,-2588.42,0.00012246,2]
[346822140,1735306281196,-686.41,0.00012246,2]
[346822141,1735306281205,-500.0,0.00012246,2]
[346822142,1735306281215,-2726.57,0.00012246,2]
[346822143,1735306281224,-2696.48,0.00012246,2]
[346822144,1735306281234,-500.0,0.00012246,2]
[346822145,1735306281243,-1695.02,0.00012246,2]
[346822146,1735306281253,-1083.8,0.00012246,2]
[346822147,1735306281263,-1734.7,0.00012246,2]
[346822148,1735306281273,-1862.47,0.00012246,2]
[346822149,1735306281283,-791.38,0.00012246,2]
[346822150,1735306281292,-500.0,0.00012246,2]
[346822151,1735306281302,-1196.9,0.00012246,2]
[346822152,1735306281311,-1405.39,0.00012246,2]
[346822153,1735306281339,-1342.02,0.00012246,2]
[346822154,1735306281349,-894.0,0.00012246,2]
[346822155,1735306281358,-500.0,0.00012246,2]
[346822156,1735306281367,-2537.2,0.00012246,2]
[346822157,1735306281377,-581.0,0.00012246,2]
[346822158,1735306281386,-1243.42,0.00012246,2]
[346822159,1735306281395,-2302.07,0.00012246,2]
[346822160,1735306281404,-764.34,0.00012246,2]
[346822161,1735306281414,-500.0,0.00012246,2]
[346822162,1735306281423,-500.0,0.00012246,2]
[346822163,1735306281432,-834.71,0.00012246,2]
[346822164,1735306281441,-1430.52,0.00012246,2]
[346822165,1735306281450,-965.54,0.00012246,2]
[346822166,1735306281459,-1212.82,0.00012246,2]
[346822167,1735306281469,-500.0,0.00012246,2]
[346822168,1735306281478,-1153.81,0.00012246,2]
[346822169,1735306281488,-514.88,0.00012246,2]
[346822170,1735306281497,-500.0,0.00012246,2]
[346822171,1735306281507,-500.0,0.00012246,2]
[346822172,1735306281516,-926.74,0.00012246,2]
[346822173,1735306281525,-500.0,0.00012246,2]
[346822174,1735306281536,-754.18,0.00012246,2]
[346822175,1735306281545,-500.0,0.00012246,2]
[346822176,1735306281554,-911.33,0.00012246,2]
[346822177,1735306281563,-1814.23,0.00012246,2]
[346822178,1735306281573,-500.0,0.00012246,2]
[346822179,1735306281582,-1808.12,0.00012246,2]
[346822180,1735306281591,-818.93,0.00012246,2]
[346822181,1735306281600,-1313.64,0.00012246,2]
[346822182,1735306281609,-1648.92,0.00012246,2]
[346822183,1735306281618,-793.17,0.00012246,2]
[346822184,1735306281628,-651.31,0.00012246,2]
[346822185,1735306281638,-500.0,0.00012246,2]
[346822186,1735306281647,-757.72,0.00012246,2]
[346822187,1735306281656,-2056.61,0.00012246,2]
[346822188,1735306281665,-500.0,0.00012246,2]
[346822189,1735306281674,-1069.67,0.00012246,2]
[346822190,1735306281684,-500.0,0.00012246,2]
[346822191,1735306281693,-500.0,0.00012246,2]
[346822192,1735306281703,-500.0,0.00012246,2]
[346822193,1735306281713,-1412.76,0.00012246,2]
[346822194,1735306281722,-500.0,0.00012246,2]
[346822195,1735306281731,-1898.35,0.00012246,2]